[Event "Titled Tuesday Blitz May 24 Early 2022"]
[White "Mekhitarian, Krikor Sevag"]
[Black "Macovei, Andrei"]
[WhiteFideId "2107660"]
[BlackFideId "13904680"]
[WhiteElo "2598"]
[BlackElo "2472"]
[Result "1-0"]
[Round "03"]
[TimeControl "180+1"]
[Date "2022.05.24"]
[WhiteClock "0:00:15"]
[BlackClock "0:00:01"]

1. d4 {[%clk 0:03:00]}  Nf6 {[%clk 0:02:59]} 2. Nf3 {[%clk 0:03:00]}  d5 {[%clk 0:02:59]} 3. g3 {[%clk 0:03:00]}  e6 {[%clk 0:02:59]} 4. Bg2 {[%clk 0:03:00]}  b5 {[%clk 0:03:00]} 5. O-O {[%clk 0:02:56]}  Bb7 {[%clk 0:03:00]} 6. a4 {[%clk 0:02:56]}  b4 {[%clk 0:03:00]} 7. a5 {[%clk 0:02:56]}  c5 {[%clk 0:02:58]} 8. c4 {[%clk 0:02:42]}  bxc3 {[%clk 0:02:50]} 9. Nxc3 {[%clk 0:02:39]}  Be7 {[%clk 0:02:48]} 10. a6 {[%clk 0:02:40]}  Bc6 {[%clk 0:02:28]} 11. Ne5 {[%clk 0:02:39]}  O-O {[%clk 0:02:27]} 12. e4 {[%clk 0:01:50]}  dxe4 {[%clk 0:02:18]} 13. Nxc6 {[%clk 0:01:45]}  Nxc6 {[%clk 0:02:18]} 14. Nxe4 {[%clk 0:01:45]}  Nxd4 {[%clk 0:02:18]} 15. Nxf6+ {[%clk 0:01:31]}  Bxf6 {[%clk 0:02:19]} 16. Bxa8 {[%clk 0:01:30]}  Qxa8 {[%clk 0:02:20]} 17. f3 {[%clk 0:01:26]}  Rb8 {[%clk 0:01:42]} 18. Rf2 {[%clk 0:01:25]}  Rb3 {[%clk 0:01:34]} 19. Kg2 {[%clk 0:01:23]}  h5 {[%clk 0:01:31]} 20. Ra4 {[%clk 0:01:17]}  Qb8 {[%clk 0:01:30]} 21. Bf4 {[%clk 0:01:14]}  Qb5 {[%clk 0:01:28]} 22. Ra3 {[%clk 0:01:10]}  Rxb2 {[%clk 0:01:24]} 23. Ra2 {[%clk 0:01:11]}  Rb3 {[%clk 0:01:22]} 24. Qc1 {[%clk 0:01:00]}  h4 {[%clk 0:01:19]} 25. Rab2 {[%clk 0:00:56]}  Rxb2 {[%clk 0:00:56]} 26. Rxb2 {[%clk 0:00:52]}  Qd3 {[%clk 0:00:51]} 27. Qe3 {[%clk 0:00:43]}  Qxa6 {[%clk 0:00:29]} 28. Qe4 {[%clk 0:00:42]}  g6 {[%clk 0:00:20]} 29. Be5 {[%clk 0:00:40]}  Bxe5 {[%clk 0:00:15]} 30. Qxe5 {[%clk 0:00:40]}  h3+ {[%clk 0:00:15]} 31. Kf2 {[%clk 0:00:39]}  Kh7 {[%clk 0:00:15]} 32. Qf6 {[%clk 0:00:35]}  Qd3 {[%clk 0:00:10]} 33. Qxf7+ {[%clk 0:00:30]}  Kh6 {[%clk 0:00:11]} 34. Qf4+ {[%clk 0:00:27]}  g5 {[%clk 0:00:11]} 35. Qe3 {[%clk 0:00:20]}  Qf5 {[%clk 0:00:05]} 36. Qe4 {[%clk 0:00:17]}  Kg6 {[%clk 0:00:04]} 37. Ra2 {[%clk 0:00:17]}  Qxe4 {[%clk 0:00:05]} 38. fxe4 {[%clk 0:00:17]}  Kf6 {[%clk 0:00:05]} 39. Ke3 {[%clk 0:00:16]}  g4 {[%clk 0:00:04]} 40. Rxa7 {[%clk 0:00:16]}  Nf3 {[%clk 0:00:04]} 41. Kf4 {[%clk 0:00:16]}  Nxh2 {[%clk 0:00:04]} 42. e5+ {[%clk 0:00:17]}  Kg6 {[%clk 0:00:04]} 43. Re7 {[%clk 0:00:17]}  Nf3 {[%clk 0:00:02]} 44. Rxe6+ {[%clk 0:00:17]}  Kh5 {[%clk 0:00:01]} 45. Re8 {[%clk 0:00:17]}  h2 {[%clk 0:00:02]} 46. Rh8+ {[%clk 0:00:17]}  Kg6 {[%clk 0:00:02]} 47. e6 {[%clk 0:00:14]}  Nd4 {[%clk 0:00:02]} 48. Kxg4 {[%clk 0:00:14]}  Nxe6 {[%clk 0:00:02]} 49. Rxh2 {[%clk 0:00:15]}  c4 {[%clk 0:00:02]} 50. Rc2 {[%clk 0:00:14]}  Ng5 {[%clk 0:00:03]} 51. Rxc4 {[%clk 0:00:14]}  Nf7 {[%clk 0:00:04]} 52. Rc6+ {[%clk 0:00:14]}  Kg7 {[%clk 0:00:04]} 53. Kf4 {[%clk 0:00:14]}  Nh6 {[%clk 0:00:04]} 54. g4 {[%clk 0:00:15]}  Nf7 {[%clk 0:00:05]} 55. g5 {[%clk 0:00:15]}  Nd8 {[%clk 0:00:02]} 56. Rb6 {[%clk 0:00:15]}  Nf7 {[%clk 0:00:01]} 57. Kf5 {[%clk 0:00:15]} 1-0


[Site "https://www.chess.com"]

[Event "Titled Tuesday Blitz May 24 Early 2022"]
[White "Mestnikov, Aisen"]
[Black "Clawitter, Craig"]
[WhiteFideId "34130117"]
[BlackFideId "2023105"]
[WhiteElo "2027"]
[BlackElo "2230"]
[Result "1-0"]
[Round "03"]
[TimeControl "180+1"]
[Date "2022.05.25"]
[WhiteClock "0:01:24"]
[BlackClock "0:00:14"]

1. d4 {[%clk 0:03:00]}  e6 {[%clk 0:02:58]} 2. Nf3 {[%clk 0:03:00]}  Nf6 {[%clk 0:02:58]} 3. c4 {[%clk 0:03:00]}  d5 {[%clk 0:02:59]} 4. g3 {[%clk 0:03:01]}  Be7 {[%clk 0:02:59]} 5. Bg2 {[%clk 0:03:01]}  O-O {[%clk 0:02:59]} 6. O-O {[%clk 0:03:02]}  dxc4 {[%clk 0:03:00]} 7. Ne5 {[%clk 0:03:03]}  Nc6 {[%clk 0:03:00]} 8. Bxc6 {[%clk 0:03:03]}  bxc6 {[%clk 0:03:00]} 9. Nxc6 {[%clk 0:03:04]}  Qe8 {[%clk 0:03:00]} 10. Nxe7+ {[%clk 0:03:05]}  Qxe7 {[%clk 0:03:01]} 11. Qa4 {[%clk 0:03:05]}  e5 {[%clk 0:03:02]} 12. dxe5 {[%clk 0:03:05]}  Qxe5 {[%clk 0:03:01]} 13. Nc3 {[%clk 0:03:06]}  Be6 {[%clk 0:02:44]} 14. Bf4 {[%clk 0:03:05]}  Qh5 {[%clk 0:02:41]} 15. f3 {[%clk 0:03:05]}  Rab8 {[%clk 0:02:06]} 16. Qa3 {[%clk 0:03:01]}  Rb6 {[%clk 0:01:22]} 17. Rfd1 {[%clk 0:03:00]}  Nd5 {[%clk 0:01:18]} 18. Nxd5 {[%clk 0:02:54]}  Bxd5 {[%clk 0:01:18]} 19. g4 {[%clk 0:02:51]}  Rg6 {[%clk 0:01:02]} 20. Bg3 {[%clk 0:01:53]}  Qg5 {[%clk 0:00:39]} 21. f4 {[%clk 0:01:34]}  Qxg4 {[%clk 0:00:35]} 22. Rxd5 {[%clk 0:01:34]}  Qxe2 {[%clk 0:00:20]} 23. Re5 {[%clk 0:01:27]}  Qc2 {[%clk 0:00:15]} 24. Rae1 {[%clk 0:01:25]}  h5 {[%clk 0:00:14]} 25. Qxf8+ {[%clk 0:01:24]}  Kxf8 {[%clk 0:00:14]} 26. Re8# {[%clk 0:01:24]} 1-0


[Site "https://www.chess.com"]

[Event "Titled Tuesday Blitz May 24 Early 2022"]
[White "Meunier-Pion, Jean"]
[Black "Perez Gormaz, Matias"]
[WhiteFideId "20685327"]
[BlackFideId "3406342"]
[WhiteElo "2124"]
[BlackElo "2341"]
[Result "0-1"]
[Round "03"]
[TimeControl "180+1"]
[Date "2022.05.25"]
[WhiteClock "0:00:02"]
[BlackClock "0:00:04"]

1. e4 {[%clk 0:03:00]}  d5 {[%clk 0:02:58]} 2. exd5 {[%clk 0:03:00]}  Qxd5 {[%clk 0:02:58]} 3. Nc3 {[%clk 0:03:00]}  Qd8 {[%clk 0:02:59]} 4. d4 {[%clk 0:02:59]}  Nf6 {[%clk 0:03:00]} 5. Nf3 {[%clk 0:02:58]}  Bf5 {[%clk 0:03:00]} 6. Bc4 {[%clk 0:02:56]}  e6 {[%clk 0:03:01]} 7. Bf4 {[%clk 0:02:53]}  c6 {[%clk 0:02:59]} 8. Bb3 {[%clk 0:02:44]}  Nbd7 {[%clk 0:02:58]} 9. Qd2 {[%clk 0:02:43]}  Bb4 {[%clk 0:02:55]} 10. a3 {[%clk 0:02:35]}  Ne4 {[%clk 0:02:55]} 11. Qe3 {[%clk 0:02:07]}  Bxc3+ {[%clk 0:02:54]} 12. bxc3 {[%clk 0:02:07]}  Qa5 {[%clk 0:02:55]} 13. O-O {[%clk 0:01:49]}  Qxc3 {[%clk 0:02:55]} 14. Rab1 {[%clk 0:01:36]}  Qxe3 {[%clk 0:02:52]} 15. fxe3 {[%clk 0:01:36]}  O-O {[%clk 0:02:49]} 16. Ba4 {[%clk 0:01:36]}  Nb6 {[%clk 0:02:46]} 17. Bb3 {[%clk 0:01:29]}  h6 {[%clk 0:02:44]} 18. Rfe1 {[%clk 0:01:22]}  Rfd8 {[%clk 0:02:39]} 19. Be5 {[%clk 0:01:15]}  Rd7 {[%clk 0:02:28]} 20. a4 {[%clk 0:01:05]}  f6 {[%clk 0:02:16]} 21. Bf4 {[%clk 0:00:57]}  g5 {[%clk 0:02:15]} 22. Bg3 {[%clk 0:00:49]}  Kf7 {[%clk 0:01:51]} 23. a5 {[%clk 0:00:42]}  Nd5 {[%clk 0:01:50]} 24. c4 {[%clk 0:00:38]}  Ndc3 {[%clk 0:01:49]} 25. Rb2 {[%clk 0:00:39]}  Nxg3 {[%clk 0:01:47]} 26. hxg3 {[%clk 0:00:39]}  Ne4 {[%clk 0:01:48]} 27. d5 {[%clk 0:00:33]}  Nc5 {[%clk 0:01:35]} 28. Rd1 {[%clk 0:00:24]}  Nxb3 {[%clk 0:01:25]} 29. dxe6+ {[%clk 0:00:24]}  Bxe6 {[%clk 0:01:24]} 30. Rxd7+ {[%clk 0:00:23]}  Bxd7 {[%clk 0:01:23]} 31. Rxb3 {[%clk 0:00:23]}  Rb8 {[%clk 0:01:23]} 32. c5 {[%clk 0:00:19]}  a6 {[%clk 0:01:06]} 33. Nd2 {[%clk 0:00:15]}  Be6 {[%clk 0:00:59]} 34. Rb4 {[%clk 0:00:15]}  Bd5 {[%clk 0:00:57]} 35. e4 {[%clk 0:00:15]}  Be6 {[%clk 0:00:57]} 36. Kf2 {[%clk 0:00:15]}  Ke7 {[%clk 0:00:56]} 37. Ke3 {[%clk 0:00:12]}  Kd7 {[%clk 0:00:56]} 38. Rd4+ {[%clk 0:00:11]}  Kc7 {[%clk 0:00:56]} 39. Rd6 {[%clk 0:00:12]}  Re8 {[%clk 0:00:56]} 40. Nf3 {[%clk 0:00:12]}  Bd5 {[%clk 0:00:50]} 41. Rxf6 {[%clk 0:00:10]}  Rxe4+ {[%clk 0:00:47]} 42. Kd3 {[%clk 0:00:10]}  Rc4 {[%clk 0:00:32]} 43. Rxh6 {[%clk 0:00:07]}  Rxc5 {[%clk 0:00:32]} 44. Rh7+ {[%clk 0:00:07]}  Kb8 {[%clk 0:00:31]} 45. Rh8+ {[%clk 0:00:04]}  Ka7 {[%clk 0:00:31]} 46. Ne5 {[%clk 0:00:05]}  Rxa5 {[%clk 0:00:29]} 47. Nd7 {[%clk 0:00:04]}  Ra3+ {[%clk 0:00:26]} 48. Kd4 {[%clk 0:00:04]}  Rxg3 {[%clk 0:00:25]} 49. Nc5 {[%clk 0:00:03]}  Rg4+ {[%clk 0:00:22]} 50. Ke5 {[%clk 0:00:03]}  Rc4 {[%clk 0:00:21]} 51. Kd6 {[%clk 0:00:04]}  a5 {[%clk 0:00:18]} 52. Rh7 {[%clk 0:00:02]}  Rb4 {[%clk 0:00:17]} 53. Rg7 {[%clk 0:00:02]}  Rb5 {[%clk 0:00:17]} 54. Rxg5 {[%clk 0:00:02]}  Rb2 {[%clk 0:00:06]} 55. Rg4 {[%clk 0:00:01]}  Rxg2 {[%clk 0:00:05]} 56. Ra4 {[%clk 0:00:02]}  b6 {[%clk 0:00:04]} 57. Nd7 {[%clk 0:00:01]}  Rg6+ {[%clk 0:00:04]} 58. Kc7 {[%clk 0:00:02]}  Rg7 {[%clk 0:00:04]} 59. Rd4 {[%clk 0:00:02]}  Ka6 {[%clk 0:00:04]} 60. Kd6 {[%clk 0:00:02]}  Kb5 {[%clk 0:00:05]} 61. Nb8 {[%clk 0:00:02]}  Rg6+ {[%clk 0:00:05]} 62. Kc7 {[%clk 0:00:02]}  Kc5 {[%clk 0:00:05]} 63. Rd2 {[%clk 0:00:02]}  Rg7+ {[%clk 0:00:06]} 64. Nd7+ {[%clk 0:00:03]}  Rxd7+ {[%clk 0:00:05]} 65. Kxd7 {[%clk 0:00:03]}  a4 {[%clk 0:00:06]} 66. Rc2+ {[%clk 0:00:03]}  Bc4 {[%clk 0:00:06]} 67. Kc7 {[%clk 0:00:04]}  b5 {[%clk 0:00:06]} 68. Rg2 {[%clk 0:00:03]}  a3 {[%clk 0:00:06]} 69. Rg5+ {[%clk 0:00:04]}  Bd5 {[%clk 0:00:06]} 70. Rg2 {[%clk 0:00:04]}  a2 {[%clk 0:00:07]} 71. Rb2 {[%clk 0:00:04]}  b4 {[%clk 0:00:06]} 72. Kb7 {[%clk 0:00:04]}  b3 {[%clk 0:00:06]} 73. Ka6 {[%clk 0:00:05]}  Kb4 {[%clk 0:00:07]} 74. Kb6 {[%clk 0:00:05]}  Ka3 {[%clk 0:00:07]} 75. Rf2 {[%clk 0:00:03]}  a1=Q {[%clk 0:00:07]} 76. Kc5 {[%clk 0:00:03]}  Qg1 {[%clk 0:00:06]} 77. Kd6 {[%clk 0:00:01]}  Qxf2 {[%clk 0:00:07]} 78. Ke7 {[%clk 0:00:01]}  Qf5 {[%clk 0:00:06]} 79. Ke8 {[%clk 0:00:02]}  Qh7 {[%clk 0:00:06]} 80. Kf8 {[%clk 0:00:02]}  Qf7# {[%clk 0:00:04]} 0-1


[Site "https://www.chess.com"]

[Event "Titled Tuesday Blitz May 24 Early 2022"]
[White "Nugumanov, Bakhtiyar"]
[Black "Avazkhonov, Alikhon"]
[WhiteFideId "13701797"]
[BlackFideId "14208504"]
[WhiteElo "2262"]
[BlackElo "1739"]
[Result "0-1"]
[Round "03"]
[TimeControl "180+1"]
[Date "2022.05.25"]
[WhiteClock "0:00:02"]
[BlackClock "0:00:02"]

1. Nf3 {[%clk 0:03:00]}  Nf6 {[%clk 0:02:58]} 2. c4 {[%clk 0:02:59]}  g6 {[%clk 0:02:58]} 3. Nc3 {[%clk 0:02:55]}  Bg7 {[%clk 0:02:59]} 4. g3 {[%clk 0:02:55]}  O-O {[%clk 0:02:59]} 5. Bg2 {[%clk 0:02:55]}  d6 {[%clk 0:02:59]} 6. O-O {[%clk 0:02:54]}  Nbd7 {[%clk 0:03:00]} 7. d3 {[%clk 0:02:51]}  e5 {[%clk 0:03:00]} 8. Rb1 {[%clk 0:02:45]}  Ne8 {[%clk 0:02:18]} 9. e4 {[%clk 0:02:23]}  h6 {[%clk 0:02:17]} 10. d4 {[%clk 0:01:46]}  f5 {[%clk 0:02:09]} 11. dxe5 {[%clk 0:01:34]}  dxe5 {[%clk 0:02:07]} 12. Nh4 {[%clk 0:01:09]}  Kh7 {[%clk 0:01:34]} 13. exf5 {[%clk 0:00:45]}  gxf5 {[%clk 0:01:35]} 14. Nxf5 {[%clk 0:00:45]}  Rxf5 {[%clk 0:01:11]} 15. Qc2 {[%clk 0:00:46]}  Ndf6 {[%clk 0:00:48]} 16. Bh3 {[%clk 0:00:24]}  e4 {[%clk 0:00:47]} 17. Bxf5+ {[%clk 0:00:20]}  Bxf5 {[%clk 0:00:48]} 18. Rd1 {[%clk 0:00:20]}  Qe7 {[%clk 0:00:46]} 19. Nd5 {[%clk 0:00:21]}  Nxd5 {[%clk 0:00:46]} 20. Rxd5 {[%clk 0:00:21]}  Bg6 {[%clk 0:00:44]} 21. Be3 {[%clk 0:00:20]}  c6 {[%clk 0:00:43]} 22. Rd2 {[%clk 0:00:20]}  Nf6 {[%clk 0:00:38]} 23. Rbd1 {[%clk 0:00:21]}  Ng4 {[%clk 0:00:38]} 24. b3 {[%clk 0:00:19]}  Nxe3 {[%clk 0:00:37]} 25. fxe3 {[%clk 0:00:18]}  Rf8 {[%clk 0:00:37]} 26. Rd7 {[%clk 0:00:18]}  Qc5 {[%clk 0:00:30]} 27. Qe2 {[%clk 0:00:18]}  Rf3 {[%clk 0:00:25]} 28. Rxb7 {[%clk 0:00:14]}  Rxe3 {[%clk 0:00:18]} 29. Qf2 {[%clk 0:00:15]}  Qg5 {[%clk 0:00:15]} 30. Rdd7 {[%clk 0:00:14]}  Rf3 {[%clk 0:00:09]} 31. Rxg7+ {[%clk 0:00:15]}  Kh8 {[%clk 0:00:09]} 32. Qe1 {[%clk 0:00:07]}  Qc5+ {[%clk 0:00:06]} 33. Kg2 {[%clk 0:00:06]}  Re3 {[%clk 0:00:05]} 34. Qd1 {[%clk 0:00:06]}  Rd3 {[%clk 0:00:04]} 35. Qf1 {[%clk 0:00:06]}  Rd2+ {[%clk 0:00:04]} 36. Kh1 {[%clk 0:00:04]}  Rf2 {[%clk 0:00:05]} 37. Qd1 {[%clk 0:00:03]}  Qf8 {[%clk 0:00:02]} 38. Rxg6 {[%clk 0:00:02]}  Rf1+ {[%clk 0:00:02]} 39. Kg2 {[%clk 0:00:02]}  Rxd1 {[%clk 0:00:02]} 0-1


[Site "https://www.chess.com"]

[Event "Titled Tuesday Blitz May 24 Early 2022"]
[White "Odegov, Artem"]
[Black "Brodowski, Piotr"]
[WhiteFideId "34183644"]
[BlackFideId "1124480"]
[WhiteElo "2286"]
[BlackElo "2431"]
[Result "0-1"]
[Round "03"]
[TimeControl "180+1"]
[Date "2022.05.25"]
[WhiteClock "0:00:03"]
[BlackClock "0:00:22"]

1. d4 {[%clk 0:03:00]}  d6 {[%clk 0:02:58]} 2. c4 {[%clk 0:02:58]}  e5 {[%clk 0:02:58]} 3. Nf3 {[%clk 0:02:58]}  e4 {[%clk 0:02:54]} 4. Nfd2 {[%clk 0:02:57]}  f5 {[%clk 0:02:54]} 5. e3 {[%clk 0:02:47]}  Nf6 {[%clk 0:02:49]} 6. Nc3 {[%clk 0:02:46]}  Be7 {[%clk 0:02:46]} 7. Be2 {[%clk 0:02:35]}  c6 {[%clk 0:02:46]} 8. Qc2 {[%clk 0:02:26]}  O-O {[%clk 0:02:40]} 9. d5 {[%clk 0:01:59]}  Nbd7 {[%clk 0:02:20]} 10. O-O {[%clk 0:01:44]}  a5 {[%clk 0:02:13]} 11. Rd1 {[%clk 0:01:38]}  Nc5 {[%clk 0:01:58]} 12. Nb3 {[%clk 0:01:01]}  Na6 {[%clk 0:01:54]} 13. a3 {[%clk 0:00:31]}  Qc7 {[%clk 0:01:52]} 14. Nd4 {[%clk 0:00:25]}  Bd7 {[%clk 0:01:47]} 15. Bd2 {[%clk 0:00:23]}  Rac8 {[%clk 0:01:42]} 16. Rac1 {[%clk 0:00:20]}  Qb6 {[%clk 0:01:11]} 17. Na4 {[%clk 0:00:13]}  Qc7 {[%clk 0:01:12]} 18. Ne6 {[%clk 0:00:09]}  Bxe6 {[%clk 0:01:12]} 19. dxe6 {[%clk 0:00:10]}  Rfd8 {[%clk 0:01:09]} 20. Bc3 {[%clk 0:00:09]}  d5 {[%clk 0:00:49]} 21. cxd5 {[%clk 0:00:06]}  Nxd5 {[%clk 0:00:49]} 22. Bxa6 {[%clk 0:00:05]}  bxa6 {[%clk 0:00:50]} 23. Bd4 {[%clk 0:00:05]}  Bd6 {[%clk 0:00:48]} 24. g3 {[%clk 0:00:03]}  Qe7 {[%clk 0:00:48]} 25. Bc5 {[%clk 0:00:01]}  Qxe6 {[%clk 0:00:48]} 26. Bxd6 {[%clk 0:00:02]}  Qxd6 {[%clk 0:00:48]} 27. Nc5 {[%clk 0:00:03]}  Qh6 {[%clk 0:00:36]} 28. Nxa6 {[%clk 0:00:02]}  Rd6 {[%clk 0:00:20]} 29. Nc5 {[%clk 0:00:03]}  Qh3 {[%clk 0:00:20]} 30. Qe2 {[%clk 0:00:02]}  Rh6 {[%clk 0:00:20]} 31. f4 {[%clk 0:00:01]}  exf3 {[%clk 0:00:20]} 32. Qf2 {[%clk 0:00:02]}  Nxe3 {[%clk 0:00:20]} 33. Rd7 {[%clk 0:00:02]}  Ng4 {[%clk 0:00:19]} 34. Qc2 {[%clk 0:00:01]}  f2+ {[%clk 0:00:19]} 35. Qxf2 {[%clk 0:00:01]}  Nxf2 {[%clk 0:00:19]} 36. Kxf2 {[%clk 0:00:02]}  Qxh2+ {[%clk 0:00:20]} 37. Ke3 {[%clk 0:00:03]}  Qxg3+ {[%clk 0:00:20]} 38. Kd4 {[%clk 0:00:04]}  Rh4+ {[%clk 0:00:20]} 39. Ne4 {[%clk 0:00:03]}  Rxe4+ {[%clk 0:00:20]} 40. Kc5 {[%clk 0:00:03]}  Qe5+ {[%clk 0:00:21]} 41. Kb6 {[%clk 0:00:03]}  Qb5+ {[%clk 0:00:22]} 42. Ka7 {[%clk 0:00:03]}  Ree8 {[%clk 0:00:21]} 43. Rxg7+ {[%clk 0:00:02]}  Kxg7 {[%clk 0:00:21]} 44. Rg1+ {[%clk 0:00:02]}  Kh8 {[%clk 0:00:22]} 45. Rg8+ {[%clk 0:00:03]}  Kxg8 {[%clk 0:00:22]} 0-1


[Site "https://www.chess.com"]

[Event "Titled Tuesday Blitz May 24 Early 2022"]
[White "Oganian, Miran"]
[Black "Lamaze, Simon"]
[WhiteFideId "4122488"]
[BlackFideId "36069264"]
[WhiteElo "2357"]
[BlackElo "1999"]
[Result "1-0"]
[Round "03"]
[TimeControl "180+1"]
[Date "2022.05.25"]
[WhiteClock "0:02:12"]
[BlackClock "0:01:07"]

1. e4 {[%clk 0:03:00]}  c5 {[%clk 0:02:57]} 2. Nf3 {[%clk 0:02:59]}  Nc6 {[%clk 0:02:58]} 3. c3 {[%clk 0:02:55]}  Nf6 {[%clk 0:02:57]} 4. e5 {[%clk 0:02:45]}  Nd5 {[%clk 0:02:56]} 5. d4 {[%clk 0:02:46]}  cxd4 {[%clk 0:02:57]} 6. cxd4 {[%clk 0:02:34]}  d6 {[%clk 0:02:56]} 7. Bc4 {[%clk 0:02:34]}  e6 {[%clk 0:02:55]} 8. O-O {[%clk 0:02:30]}  Be7 {[%clk 0:02:54]} 9. Bd2 {[%clk 0:02:28]}  O-O {[%clk 0:02:51]} 10. Nc3 {[%clk 0:02:28]}  Nb6 {[%clk 0:02:50]} 11. Bb3 {[%clk 0:02:28]}  dxe5 {[%clk 0:02:51]} 12. dxe5 {[%clk 0:02:28]}  Na5 {[%clk 0:02:51]} 13. Bc2 {[%clk 0:02:28]}  Nac4 {[%clk 0:02:52]} 14. Qe2 {[%clk 0:02:28]}  Nxd2 {[%clk 0:02:52]} 15. Nxd2 {[%clk 0:02:28]}  Bd7 {[%clk 0:02:45]} 16. Nde4 {[%clk 0:02:28]}  Bc6 {[%clk 0:02:43]} 17. Rad1 {[%clk 0:02:27]}  Nd7 {[%clk 0:02:43]} 18. Nf6+ {[%clk 0:02:25]}  Bxf6 {[%clk 0:02:39]} 19. exf6 {[%clk 0:02:25]}  g6 {[%clk 0:01:37]} 20. Ne4 {[%clk 0:02:20]}  Qc7 {[%clk 0:01:13]} 21. Rxd7 {[%clk 0:02:11]}  Qxd7 {[%clk 0:01:07]} 22. Qe3 {[%clk 0:02:12]} 1-0


[Site "https://www.chess.com"]

[Event "Titled Tuesday Blitz May 24 Early 2022"]
[White "Ovezdurdyyeva, Jemal"]
[Black "Decuigniere, Tom"]
[WhiteFideId "14001888"]
[BlackFideId "26093820"]
[WhiteElo "1946"]
[BlackElo "1997"]
[Result "1-0"]
[Round "03"]
[TimeControl "180+1"]
[Date "2022.05.25"]
[WhiteClock "0:00:07"]
[BlackClock "0:00:01"]

1. e4 {[%clk 0:03:00]}  c5 {[%clk 0:02:56]} 2. Nf3 {[%clk 0:02:59]}  e6 {[%clk 0:02:55]} 3. d4 {[%clk 0:02:59]}  cxd4 {[%clk 0:02:56]} 4. Nxd4 {[%clk 0:02:59]}  Nf6 {[%clk 0:02:57]} 5. Nc3 {[%clk 0:02:57]}  Nc6 {[%clk 0:02:57]} 6. Ndb5 {[%clk 0:02:53]}  d6 {[%clk 0:02:56]} 7. a4 {[%clk 0:02:47]}  a6 {[%clk 0:02:41]} 8. Na3 {[%clk 0:02:45]}  d5 {[%clk 0:02:35]} 9. exd5 {[%clk 0:02:32]}  exd5 {[%clk 0:02:35]} 10. Bd3 {[%clk 0:02:26]}  Bc5 {[%clk 0:02:25]} 11. O-O {[%clk 0:02:24]}  O-O {[%clk 0:02:24]} 12. Bg5 {[%clk 0:02:23]}  h6 {[%clk 0:02:18]} 13. Bxf6 {[%clk 0:02:20]}  Qxf6 {[%clk 0:02:18]} 14. Nxd5 {[%clk 0:02:19]}  Qxb2 {[%clk 0:02:15]} 15. Nc4 {[%clk 0:02:07]}  Qd4 {[%clk 0:01:55]} 16. c3 {[%clk 0:02:05]}  Qh4 {[%clk 0:01:29]} 17. Qf3 {[%clk 0:01:43]}  Be6 {[%clk 0:01:10]} 18. Nf4 {[%clk 0:01:34]}  Qf6 {[%clk 0:00:41]} 19. Qe4 {[%clk 0:01:21]}  g6 {[%clk 0:00:22]} 20. Nxe6 {[%clk 0:01:20]}  fxe6 {[%clk 0:00:23]} 21. Qxg6+ {[%clk 0:01:18]}  Qxg6 {[%clk 0:00:21]} 22. Bxg6 {[%clk 0:01:19]}  Rf6 {[%clk 0:00:17]} 23. Be4 {[%clk 0:01:13]}  Raf8 {[%clk 0:00:13]} 24. Bf3 {[%clk 0:01:02]}  e5 {[%clk 0:00:13]} 25. Rfe1 {[%clk 0:00:23]}  Rf5 {[%clk 0:00:12]} 26. Ra2 {[%clk 0:00:20]}  b5 {[%clk 0:00:12]} 27. axb5 {[%clk 0:00:19]}  axb5 {[%clk 0:00:13]} 28. Ne3 {[%clk 0:00:15]}  R5f6 {[%clk 0:00:11]} 29. Rb2 {[%clk 0:00:12]}  b4 {[%clk 0:00:06]} 30. cxb4 {[%clk 0:00:11]}  Nxb4 {[%clk 0:00:07]} 31. Rc1 {[%clk 0:00:11]}  Nd3 {[%clk 0:00:06]} 32. Rc4 {[%clk 0:00:09]}  Nxb2 {[%clk 0:00:06]} 33. Rxc5 {[%clk 0:00:09]}  e4 {[%clk 0:00:06]} 34. Bxe4 {[%clk 0:00:09]}  Rxf2 {[%clk 0:00:05]} 35. Bd5+ {[%clk 0:00:09]}  Kh8 {[%clk 0:00:04]} 36. Bf3 {[%clk 0:00:09]}  Rd2 {[%clk 0:00:02]} 37. h3 {[%clk 0:00:09]}  Rfd8 {[%clk 0:00:01]} 38. Rc6 {[%clk 0:00:07]} 1-0


[Site "https://www.chess.com"]

[Event "Titled Tuesday Blitz May 24 Early 2022"]
[White "Perez Leiva, Jerzy Jesus"]
[Black "Kovalev, Vladislav"]
[WhiteFideId "3524337"]
[BlackFideId "13504398"]
[WhiteElo "2287"]
[BlackElo "2530"]
[Result "0-1"]
[Round "03"]
[TimeControl "180+1"]
[Date "2022.05.25"]
[WhiteClock "0:00:04"]
[BlackClock "0:00:11"]

1. e4 {[%clk 0:03:00]}  e5 {[%clk 0:03:00]} 2. Nf3 {[%clk 0:03:00]}  Nc6 {[%clk 0:03:00]} 3. Bb5 {[%clk 0:03:00]}  a6 {[%clk 0:03:01]} 4. Ba4 {[%clk 0:03:00]}  Nf6 {[%clk 0:03:02]} 5. O-O {[%clk 0:02:59]}  Be7 {[%clk 0:03:02]} 6. d3 {[%clk 0:02:57]}  b5 {[%clk 0:03:02]} 7. Bb3 {[%clk 0:02:57]}  O-O {[%clk 0:03:02]} 8. Nc3 {[%clk 0:02:51]}  d6 {[%clk 0:03:01]} 9. a4 {[%clk 0:02:45]}  Bg4 {[%clk 0:02:59]} 10. Be3 {[%clk 0:02:38]}  Na5 {[%clk 0:02:46]} 11. Ba2 {[%clk 0:02:35]}  b4 {[%clk 0:02:46]} 12. Nd5 {[%clk 0:02:35]}  b3 {[%clk 0:02:34]} 13. cxb3 {[%clk 0:02:19]}  Nxd5 {[%clk 0:02:33]} 14. exd5 {[%clk 0:02:20]}  f5 {[%clk 0:02:30]} 15. h3 {[%clk 0:02:14]}  Bh5 {[%clk 0:02:26]} 16. Qe1 {[%clk 0:02:10]}  Bxf3 {[%clk 0:01:41]} 17. gxf3 {[%clk 0:01:57]}  Nb7 {[%clk 0:01:38]} 18. f4 {[%clk 0:01:38]}  Bf6 {[%clk 0:01:36]} 19. Qd2 {[%clk 0:01:03]}  exf4 {[%clk 0:01:30]} 20. Bxf4 {[%clk 0:01:04]}  g5 {[%clk 0:01:31]} 21. Bh2 {[%clk 0:01:01]}  f4 {[%clk 0:01:31]} 22. Rae1 {[%clk 0:00:47]}  Qd7 {[%clk 0:01:32]} 23. Re6 {[%clk 0:00:44]}  Nc5 {[%clk 0:01:32]} 24. b4 {[%clk 0:00:45]}  Nxe6 {[%clk 0:01:31]} 25. dxe6 {[%clk 0:00:45]}  Qe7 {[%clk 0:01:31]} 26. Rc1 {[%clk 0:00:41]}  Kh8 {[%clk 0:01:30]} 27. Kg2 {[%clk 0:00:32]}  c5 {[%clk 0:01:27]} 28. bxc5 {[%clk 0:00:26]}  dxc5 {[%clk 0:01:28]} 29. Bc4 {[%clk 0:00:20]}  Bd4 {[%clk 0:01:28]} 30. f3 {[%clk 0:00:20]}  Rf6 {[%clk 0:01:22]} 31. Bg1 {[%clk 0:00:18]}  Bxg1 {[%clk 0:01:21]} 32. Kxg1 {[%clk 0:00:19]}  Rxe6 {[%clk 0:01:18]} 33. Bxe6 {[%clk 0:00:18]}  Qxe6 {[%clk 0:01:19]} 34. Rxc5 {[%clk 0:00:18]}  h6 {[%clk 0:01:07]} 35. Qc3+ {[%clk 0:00:18]}  Kg8 {[%clk 0:01:04]} 36. d4 {[%clk 0:00:08]}  Re8 {[%clk 0:00:57]} 37. Re5 {[%clk 0:00:07]}  Qf7 {[%clk 0:00:52]} 38. Qc6 {[%clk 0:00:04]}  Rxe5 {[%clk 0:00:46]} 39. dxe5 {[%clk 0:00:04]}  Qf5 {[%clk 0:00:27]} 40. Qd5+ {[%clk 0:00:02]}  Kg7 {[%clk 0:00:23]} 41. Qb7+ {[%clk 0:00:03]}  Kg6 {[%clk 0:00:21]} 42. Qc6+ {[%clk 0:00:03]}  Kh5 {[%clk 0:00:20]} 43. Qe4 {[%clk 0:00:03]}  Qxe4 {[%clk 0:00:08]} 44. fxe4 {[%clk 0:00:03]}  a5 {[%clk 0:00:09]} 45. Kf2 {[%clk 0:00:03]}  Kg6 {[%clk 0:00:09]} 46. Kf3 {[%clk 0:00:04]}  Kf7 {[%clk 0:00:10]} 47. Kg4 {[%clk 0:00:04]}  Ke6 {[%clk 0:00:11]} 48. h4 {[%clk 0:00:04]}  Kxe5 {[%clk 0:00:11]} 0-1


[Site "https://www.chess.com"]